fUSD/lending_fUSD_20260121
["ID","MTS","AMOUNT","RATE_DAILY","PERIOD"]
[402926735,1768988768217,552.19,0.00043082,120]
[402926736,1768988768286,674.7,0.00043082,120]
[402926737,1768988768354,500.0,0.00043082,120]
[402926738,1768988768426,500.0,0.00043082,120]
[402926739,1768988768498,552.19,0.00043082,120]
[402926740,1768988768568,674.7,0.00043082,120]
[402926741,1768988768642,500.0,0.00043082,120]
[402926742,1768988768712,500.0,0.00043082,120]
[402926743,1768988768781,552.19,0.00043082,120]
[402926744,1768988768849,674.7,0.00043082,120]
[402926745,1768988768918,500.0,0.00043082,120]
[402926746,1768988769017,552.19,0.00043082,120]
[402926747,1768988769177,500.0,0.00043082,120]
[402926748,1768988769260,674.7,0.00043082,120]
[402926749,1768988769372,283.08822275,0.00043082,120]
[402926750,1768988769441,552.19,0.00043082,120]
[402926751,1768988769517,500.0,0.00043082,120]
[402926752,1768988769584,674.7,0.00043082,120]
[402926753,1768988769650,300.0,0.00043082,30]
[402926754,1768988769715,552.19,0.00043082,120]
[402926755,1768988769782,604.32,0.00043082,120]
[402926756,1768988769847,500.0,0.00043082,120]
[402926757,1768988769913,674.7,0.00043082,120]
[402926758,1768988769991,552.19,0.00043082,120]
[402926759,1768988770061,500.0,0.00043082,120]
[402926760,1768988770135,674.7,0.00043082,120]
[402926761,1768988770206,552.19,0.00043082,120]
[402926762,1768988770287,500.0,0.00043082,120]
[402926763,1768988770443,500.0,0.00043082,120]
[402926764,1768988770528,674.7,0.00043082,120]
[402926765,1768988770619,500.0,0.00043082,120]
[402926766,1768988770685,674.7,0.00043082,120]
[402926767,1768988770782,500.0,0.00043082,120]
[402926768,1768988771116,674.7,0.00043082,120]
[402926769,1768988771208,300.0,0.00043082,30]
[402926770,1768988771275,674.7,0.00043082,120]
[402926771,1768988771418,674.7,0.00043082,120]
[402926772,1768988771516,674.7,0.00043082,120]
[402926773,1768988771581,674.7,0.00043082,120]
[402926774,1768988771650,674.7,0.00043082,120]
[402926775,1768988771724,300.0,0.00043082,30]
[402926776,1768988771856,674.7,0.00043082,120]
[402926777,1768988772003,645.15209717,0.00043082,120]
[402926778,1768988772094,674.7,0.00043082,120]
[402926779,1768988772231,500.0,0.00043082,30]
[402926780,1768988772332,674.7,0.00043082,120]
[402926781,1768988772584,674.7,0.00043082,120]
[402926782,1768988772785,674.7,0.00043082,120]
[402926783,1768988772856,953.43,0.00043082,120]
[402926784,1768988773013,732.5,0.00043082,120]
[402926785,1768988773082,674.7,0.00043082,120]
[402926786,1768988773148,300.0,0.00043082,30]
[402926787,1768988773215,953.43,0.00043082,120]
[402926788,1768988773283,674.88591232,0.00043082,120]
[402926789,1768988773351,732.5,0.00043082,120]
[402926790,1768988773418,953.43,0.00043082,120]
[402926791,1768988773658,732.5,0.00043082,120]
[402926792,1768988773726,953.43,0.00043082,120]
[402926793,1768988773792,500.0,0.00043082,30]
[402926794,1768988773863,732.5,0.00043082,120]
[402926795,1768988774116,953.43,0.00043082,120]
[402926796,1768988774183,500.0,0.00043082,120]
[402926797,1768988774259,500.0,0.00043082,120]
[402926798,1768988774327,953.43,0.00043082,120]
[402926799,1768988774394,732.5,0.00043082,120]
[402926800,1768988774460,500.0,0.00043082,120]
[402926801,1768988774533,500.0,0.00043082,120]
[402926802,1768988774599,953.43,0.00043082,120]
[402926803,1768988774665,732.5,0.00043082,120]
[402926804,1768988774731,500.0,0.00043082,120]
[402926805,1768988774797,300.0,0.00043082,30]
[402926806,1768988774863,500.0,0.00043082,120]
[402926807,1768988774937,953.43,0.00043082,120]
[402926808,1768988775004,732.5,0.00043082,120]
[402926809,1768988775078,500.0,0.00043082,120]
[402926810,1768988775185,953.43,0.00043082,120]
[402926811,1768988775266,500.0,0.00043082,120]
[402926812,1768988775337,732.5,0.00043082,120]
[402926813,1768988775450,500.0,0.00043082,120]
[402926814,1768988775536,953.43,0.00043082,120]
[402926815,1768988775604,500.0,0.00043082,30]
[402926816,1768988775673,500.0,0.00043082,120]
[402926817,1768988775746,732.5,0.00043082,120]
[402926818,1768988775818,500.0,0.00043082,120]
[402926819,1768988775892,953.43,0.00043082,120]
[402926820,1768988775962,500.0,0.00043082,120]
[402926821,1768988776035,732.5,0.00043082,120]
[402926822,1768988776465,500.0,0.00043082,120]
[402926823,1768988776534,953.43,0.00043082,120]
[402926824,1768988776608,500.0,0.00043082,120]
[402926825,1768988776678,732.5,0.00043082,120]
[402926826,1768988776744,500.0,0.00043082,120]
[402926827,1768988776814,953.43,0.00043082,120]
[402926828,1768988776882,732.5,0.00043082,120]
[402926829,1768988776960,500.0,0.00043082,120]
[402926830,1768988777027,500.0,0.00043082,120]
[402926831,1768988777102,953.43,0.00043082,120]
[402926832,1768988777168,732.5,0.00043082,120]
[402926833,1768988777233,500.0,0.00043082,120]
[402926834,1768988777298,500.0,0.00043082,120]
[402926835,1768988777364,953.43,0.00043082,120]
[402926836,1768988777435,732.5,0.00043082,120]
[402926837,1768988777505,500.0,0.00043082,120]
[402926838,1768988777576,500.0,0.00043082,30]
[402926839,1768988777648,500.0,0.00043082,120]
[402926840,1768988777750,953.43,0.00043082,120]
[402926841,1768988777816,732.5,0.00043082,120]
[402926842,1768988777886,500.0,0.00043082,120]
[402926843,1768988777960,500.0,0.00043082,120]
[402926844,1768988778124,953.43,0.00043082,120]
[402926845,1768988778193,732.5,0.00043082,120]
[402926846,1768988778264,500.0,0.00043082,120]
[402926847,1768988778333,500.0,0.00043082,120]
[402926848,1768988778399,953.43,0.00043082,120]
[402926849,1768988778466,732.5,0.00043082,120]
[402926850,1768988778531,500.0,0.00043082,120]
[402926851,1768988778597,500.0,0.00043082,120]
[402926852,1768988778664,953.43,0.00043082,120]
[402926853,1768988778730,732.5,0.00043082,120]
[402926854,1768988778796,500.0,0.00043082,120]
[402926855,1768988778861,500.0,0.00043082,120]
[402926856,1768988778930,953.43,0.00043082,120]
[402926857,1768988778997,732.5,0.00043082,120]
[402926858,1768988779070,500.0,0.00043082,120]
[402926859,1768988779138,300.0,0.00043082,30]
[402926860,1768988779208,500.0,0.00043082,120]
[402926861,1768988779276,500.0,0.00043082,30]
[402926862,1768988779343,500.0,0.00043082,120]
[402926863,1768988779409,953.43,0.00043082,120]
[402926864,1768988779480,732.5,0.00043082,120]
[402926865,1768988779548,500.0,0.00043082,120]
[402926866,1768988779615,500.0,0.00043082,120]
[402926867,1768988779680,953.43,0.00043082,120]
[402926868,1768988779746,732.5,0.00043082,120]
[402926869,1768988779816,500.0,0.00043082,120]
[402926870,1768988779925,500.0,0.00043082,120]
[402926871,1768988780041,953.43,0.00043082,120]
[402926872,1768988780116,732.5,0.00043082,120]
[402926873,1768988780415,269.81539464,0.00043082,120]
[402926874,1768988780528,953.63063123,0.00043082,120]
[402926875,1768988780594,500.0,0.00043082,120]
[402926876,1768988780659,732.5,0.00043082,120]
[402926877,1768988780727,500.0,0.00043082,120]
[402926878,1768988780798,732.73165733,0.00043082,120]
[402926879,1768988780877,500.0,0.00043082,120]
[402926880,1768988780973,500.0,0.00043082,120]
[402926881,1768988781043,500.0,0.00043082,30]
[402926882,1768988781115,195.43989805,0.00043082,120]
[402926883,1768988781389,300.0,0.00043082,30]
[402926884,1768988781828,500.0,0.00043082,120]
[402926885,1768988782065,300.0,0.00043082,30]
[402926886,1768988782129,500.0,0.00043082,120]
[402926887,1768988785286,500.0,0.00043082,120]
[402926888,1768988785532,500.0,0.00043082,120]
[402926889,1768988785762,500.0,0.00043082,120]
[402926890,1768988785920,500.0,0.00043082,120]
[402926891,1768988786030,500.0,0.00043082,120]
[402926892,1768988786151,500.0,0.00043082,120]
[402926893,1768988786229,500.0,0.00043082,120]
[402926894,1768988786301,500.0,0.00043082,120]
[402926895,1768988786373,426.42928269,0.00043082,120]
[402926896,1768988786456,424.04444945,0.00043082,120]
[402926897,1768988786542,500.0,0.00043082,120]
[402926898,1768988786616,500.0,0.00043082,120]
[402926899,1768988786690,500.0,0.00043082,120]
[402926900,1768988786756,552.19,0.00043082,120]
[402926901,1768988786821,500.0,0.00043082,120]
[402926902,1768988786894,500.0,0.00043082,120]
[402926903,1768988786965,500.0,0.00043082,120]
[402926904,1768988787032,552.19,0.00043082,120]
[402926905,1768988787104,500.0,0.00043082,120]
[402926906,1768988787172,500.0,0.00043082,120]
[402926907,1768988787237,500.0,0.00043082,120]
[402926908,1768988787301,500.0,0.00043082,120]
[402926909,1768988787366,500.0,0.00043082,120]
[402926910,1768988787437,500.0,0.00043082,120]
[402926911,1768988787507,552.19,0.00043082,120]
[402926912,1768988787579,601.85967218,0.00043082,120]
[402926913,1768988787644,500.0,0.00043082,120]
[402926914,1768988787708,500.0,0.00043082,120]
[402926915,1768988787775,552.19,0.00043082,120]
[402926916,1768988787841,500.0,0.00043082,120]
[402926917,1768988787908,328.10817476,0.00043082,120]
[402926918,1768988787975,552.19,0.00043082,120]
[402926919,1768988788040,500.0,0.00043082,120]
[402926920,1768988788106,500.0,0.00043082,120]
[402926921,1768988788176,552.19,0.00043082,120]
[402926922,1768988788243,577.18238404,0.00043082,120]
[402926923,1768988788319,552.19,0.00043082,120]
[402926924,1768988788565,552.19,0.00043082,120]
[402926925,1768988788825,552.19,0.00043082,120]
[402926926,1768988789059,552.19,0.00043082,120]
[402926927,1768988789300,552.19,0.00043082,120]
[402926928,1768988789543,552.19,0.00043082,120]
[402926929,1768988789799,552.39515365,0.00043082,120]
[402926930,1768988789976,500.0,0.00043082,120]
[402926931,1768988790213,500.0,0.00043082,120]
[402926932,1768988790488,500.0,0.00043082,120]
[402926933,1768988790800,500.0,0.00043082,120]
[402926934,1768988790885,500.0,0.00043082,120]
[402926935,1768988790974,700.32,0.00043082,120]
[402926936,1768988791051,500.0,0.00043082,120]
[402926937,1768988791117,500.0,0.00043082,120]
[402926938,1768988791205,700.32,0.00043082,120]
[402926939,1768988791285,500.0,0.00043082,120]
[402926940,1768988791348,500.0,0.00043082,120]
[402926941,1768988791447,700.32,0.00043082,120]
[402926942,1768988791557,500.0,0.00043082,120]
[402926943,1768988791624,500.0,0.00043082,120]
[402926944,1768988791691,700.32,0.00043082,120]
[402926945,1768988791927,500.33090081,0.00043082,120]
[402926946,1768988792183,500.0,0.00043082,120]
[402926947,1768988792262,700.32,0.00043082,120]
[402926948,1768988792338,500.0,0.00043082,120]
[402926949,1768988792402,700.32,0.00043082,120]
[402926950,1768988792475,500.0,0.00043082,120]
[402926951,1768988792539,700.32,0.00043082,120]
[402926952,1768988792636,700.32,0.00043082,120]
[402926953,1768988792720,500.0,0.00043082,120]
[402926954,1768988792908,700.32,0.00043082,120]
[402926955,1768988792979,500.0,0.00043082,120]
[402926956,1768988793099,700.32,0.00043082,120]
[402926957,1768988793166,500.0,0.00043082,120]
[402926958,1768988793338,700.32,0.00043082,120]
[402926959,1768988793404,500.0,0.00043082,120]
[402926960,1768988793534,500.0,0.00043082,120]
[402926961,1768988793621,700.32,0.00043082,120]
[402926962,1768988793688,500.0,0.00043082,120]
[402926963,1768988793817,500.0,0.00043082,120]
[402926964,1768988793903,500.0,0.00043082,120]
[402926965,1768988794059,500.0,0.00043082,120]
[402926966,1768988794134,500.0,0.00043082,120]
[402926967,1768988794221,500.0,0.00043082,120]
[402926968,1768988794296,700.32,0.00043082,120]
[402926969,1768988794387,500.0,0.00043082,120]
[402926970,1768988794461,500.0,0.00043082,120]
[402926971,1768988794747,500.0,0.00043082,120]
[402926972,1768988794813,700.32,0.00043082,120]
[402926973,1768988794888,500.0,0.00043082,120]
[402926974,1768988794957,500.0,0.00043082,120]
[402926975,1768988795022,500.0,0.00043082,120]
[402926976,1768988795092,700.32,0.00043082,120]
[402926977,1768988795156,500.0,0.00043082,120]
[402926978,1768988795221,500.0,0.00043082,120]
[402926979,1768988795291,507.62937219,0.00043082,120]
[402926980,1768988795356,700.32,0.00043082,120]
[402926981,1768988795427,25.53114875,0.00043082,120]
[402926983,1768988834665,191.24,0.00015648,2]
[402926984,1768988834797,191.24,0.0001569,2]
[402926985,1768988834992,191.24,0.00015731,2]
[402926986,1768988835223,191.24,0.00015772,2]
[402926987,1768988835398,191.24,0.00015813,2]
[402926988,1768988835674,191.24,0.00015854,2]
[402926989,1768988835831,191.24,0.00015895,2]
[402926990,1768988835973,191.24,0.00015937,2]
[402926991,1768988836236,191.24,0.00015978,2]
[402926992,1768988836456,191.24,0.00016019,2]
[402926993,1768988836636,191.24,0.0001606,2]
[402926994,1768988836834,191.24,0.00016101,2]
[402926995,1768988836999,191.24,0.00016142,2]
[402926996,1768988837197,191.24,0.00016184,2]
[402926997,1768988837442,191.24,0.00016225,2]
[402926998,1768988837640,191.24,0.00016266,2]
[402926999,1768988838064,191.24,0.00016307,2]
[402927000,1768988838327,191.24,0.00016348,2]
[402927001,1768988838422,191.24,0.0001639,2]
[402927002,1768988880372,-205.74,0.00019178,30]
[402927003,1768988880443,-205.74,0.00024225,30]
[402927004,1768988880511,-150.00871529,0.00025083,31]
[402927005,1768988880577,-150.00871529,0.00026263,35]
[402927006,1768988880647,-150.00871529,0.00027442,39]
[402927007,1768988880719,-1715.29818891,0.00028,60]
[402927008,1768988880783,-150.00871529,0.00028622,43]
[402927009,1768988880846,-205.74,0.00029272,30]
[402927010,1768988880910,-150.00871529,0.00029801,47]
[402927011,1768988880985,-150.00871529,0.00030981,52]
[402927012,1768988881054,-150.00871529,0.00032161,56]
[402927013,1768988881122,-150.00871543,0.0003334,60]
[402927014,1768988881186,-205.74,0.00034319,30]
[402927015,1768988881251,-218.23707467,0.0003452,64]
[402927016,1768988881317,-1999.0,0.00035616,120]
[402927017,1768988881381,-218.23707467,0.000357,68]
[402927018,1768988881445,-666.0,0.00035999,30]
[402927019,1768988881511,-174.81,0.00036132,120]
[402927020,1768988881574,-174.81,0.00036186,120]
[402927021,1768988881637,-1999.0,0.00036712,120]
[402927022,1768988881702,-218.23707467,0.00036879,72]
[402927023,1768988881767,-1999.0,0.00037808,120]
[402927024,1768988881836,-174.81,0.00037938,120]
[402927025,1768988881903,-218.23707467,0.00038059,78]
[402927026,1768988881970,-5135.0,0.000387,117]
[402927027,1768988882045,-3366.04,0.000388,30]
[402927028,1768988882111,-943.3,0.00038883,120]
[402927029,1768988882181,-1999.0,0.00038904,120]
[402927030,1768988882249,-152.812964,0.00039,120]
[402927031,1768988882323,-218.23707467,0.00039239,85]
[402927032,1768988882390,-205.74,0.00039366,120]
[402927033,1768988882467,-1359.1,0.0003941,120]
[402927034,1768988882534,-3366.04,0.000396,30]
[402927035,1768988882604,-159.131376,0.000398,120]
[402927036,1768988882674,-59589.44512025,0.000399,60]
[402927037,1768988882743,-1359.1,0.00039938,120]
[402927038,1768988882807,-165.724,0.00039952,56]
[402927039,1768988882870,-1827.783,0.00039952,56]
[402927040,1768988882943,-1999.0,0.0004,120]
[402927041,1768988883009,-469.27503406,0.0004,120]
[402927042,1768988883073,-3366.04,0.000404,30]
[402927043,1768988883139,-218.23707467,0.00040418,93]
[402927044,1768988883210,-1359.1,0.00040466,120]
[402927045,1768988883276,-1359.1,0.00040993,120]
[402927046,1768988883342,-509.42390752,0.00041095,120]
[402927047,1768988883406,-572.36422497,0.00041095,120]
[402927048,1768988883472,-514.94065848,0.00041095,120]
[402927049,1768988883537,-500.0,0.00041095,120]
[402927050,1768988883602,-500.0,0.00041095,120]
[402927051,1768988883667,-502.59582169,0.00041095,120]
[402927052,1768988883731,-500.0,0.00041095,120]
[402927053,1768988883794,-500.0,0.00041095,120]
[402927054,1768988883856,-518.28557187,0.00041095,120]
[402927055,1768988883921,-618.71144339,0.00041095,120]
[402927056,1768988883989,-504.25658487,0.00041095,120]
[402927057,1768988884055,-508.32320832,0.00041095,120]
[402927058,1768988884121,-503.23477215,0.00041095,120]
[402927059,1768988884187,-500.0,0.00041095,120]
[402927060,1768988884254,-500.0,0.00041095,120]
[402927061,1768988884320,-500.0,0.00041095,120]
[402927062,1768988884387,-500.0,0.00041095,120]
[402927063,1768988884459,-501.59915555,0.00041095,120]
[402927064,1768988884543,-533.98,0.00041095,120]
[402927065,1768988884610,-500.0,0.00041095,120]
[402927066,1768988884675,-270.42152922,0.00041095,120]
[402927067,1768988885341,-500.0,0.00041095,120]
[402927068,1768988885402,-574.02,0.00041095,120]
[402927069,1768988885473,-539.31,0.00041095,120]
[402927070,1768988885538,-500.0,0.00041095,120]
[402927071,1768988885599,-579.91,0.00041095,120]
[402927072,1768988885659,-500.0,0.00041095,120]
[402927073,1768988885723,-500.0,0.00041095,120]
[402927074,1768988885783,-500.0,0.00041095,120]
[402927075,1768988885842,-500.0,0.00041095,120]
[402927076,1768988885904,-500.0,0.00041095,120]
[402927077,1768988885967,-500.0,0.00041095,120]
[402927078,1768988886029,-500.0,0.00041095,120]
[402927079,1768988886091,-500.0,0.00041095,120]
[402927080,1768988886163,-500.0,0.00041095,120]
[402927081,1768988886244,-500.0,0.00041095,120]
[402927082,1768988886311,-500.0,0.00041095,120]
[402927083,1768988886372,-512.9,0.00041095,120]
[402927084,1768988886433,-500.0,0.00041095,120]
[402927085,1768988886495,-500.0,0.00041095,120]
[402927086,1768988886556,-285.11170124,0.00041095,120]
[402927087,1768988886618,-611.76,0.00041095,120]
[402927088,1768988886681,-500.0,0.00041095,120]
[402927089,1768988886742,-500.0,0.00041095,120]
[402927090,1768988886806,-500.0,0.00041095,120]
[402927091,1768988886870,-500.0,0.00041095,120]
[402927092,1768988886933,-500.0,0.00041095,120]
[402927093,1768988886997,-509.30279039,0.00041095,30]
[402927094,1768988887061,-500.76,0.00041095,120]
[402927095,1768988887121,-500.0,0.00041095,120]
[402927096,1768988887188,-500.0,0.00041095,120]
[402927097,1768988887251,-500.0,0.00041095,60]
[402927098,1768988887314,-500.0,0.00041095,120]
[402927099,1768988887377,-1236.19,0.00041095,120]
[402927100,1768988887440,-500.0,0.00041095,120]
[402927101,1768988887503,-500.0,0.00041095,120]
[402927102,1768988887566,-500.0,0.00041095,120]
[402927103,1768988887634,-513.58878719,0.00041095,120]
[402927104,1768988887696,-651.71,0.00041095,120]
[402927105,1768988887759,-500.0,0.00041095,120]
[402927106,1768988887825,-500.0,0.00041095,120]
[402927107,1768988887891,-500.0,0.00041095,120]
[402927108,1768988887956,-347.73667201,0.00041095,120]
[402927109,1768988888021,-500.0,0.00041095,120]
[402927110,1768988888087,-500.0,0.00041095,120]
[402927111,1768988888152,-500.0,0.00041095,120]
[402927112,1768988888221,-500.0,0.00041095,120]
[402927113,1768988888288,-500.0,0.00041095,120]
[402927114,1768988888354,-550.67,0.00041095,120]
[402927115,1768988888419,-500.0,0.00041095,120]
[402927116,1768988888482,-500.0,0.00041095,120]
[402927117,1768988888546,-500.0,0.00041095,120]
[402927118,1768988888611,-746.34,0.00041095,120]
[402927119,1768988888675,-500.0,0.00041095,120]
[402927120,1768988888739,-500.0,0.00041095,120]
[402927121,1768988888804,-500.0,0.00041095,120]
[402927122,1768988888869,-500.0,0.00041095,120]
[402927123,1768988888936,-500.0,0.00041095,120]
[402927124,1768988889002,-500.0,0.00041095,120]
[402927125,1768988889068,-500.0,0.00041095,120]
[402927126,1768988889136,-500.0,0.00041095,120]
[402927127,1768988889201,-405.16917535,0.00041095,120]
[402927128,1768988889265,-500.0,0.00041095,120]
[402927129,1768988889327,-500.0,0.00041095,120]
[402927130,1768988889388,-500.0,0.00041095,120]
[402927131,1768988889457,-324.32049146,0.00041095,120]
[402927132,1768988889523,-500.0,0.00041095,120]
[402927133,1768988889586,-500.0,0.00041095,120]
[402927134,1768988889647,-623.50153222,0.00041095,60]
[402927135,1768988889707,-513.68964029,0.00041095,120]
[402927136,1768988889767,-500.0,0.00041095,120]
[402927137,1768988889827,-500.0,0.00041095,120]
[402927138,1768988889888,-500.0,0.00041095,120]
[402927139,1768988889953,-500.0,0.00041095,120]
[402927140,1768988890017,-500.0,0.00041095,90]
[402927141,1768988890079,-500.0,0.00041095,120]
[402927142,1768988890141,-500.0,0.00041095,120]
[402927143,1768988890203,-500.0,0.00041095,120]
[402927144,1768988890263,-500.0,0.00041095,120]
[402927145,1768988890323,-500.0,0.00041095,120]
[402927146,1768988890382,-500.0,0.00041095,120]
[402927147,1768988890442,-702.55279,0.00041095,120]
[402927148,1768988890503,-600.0,0.00041096,120]
[402927149,1768988890563,-150.0,0.00041197,30]
[402927150,1768988890622,-3366.04,0.000413,30]
[402927151,1768988890681,-150.0,0.00041325,30]
[402927152,1768988890742,-150.0,0.00041325,30]
[402927153,1768988890801,-150.0,0.00041325,30]
[402927154,1768988890860,-150.0,0.00041325,30]
[402927155,1768988890920,-500.0,0.00041369,120]
[402927156,1768988891196,-501.37607057,0.00041369,120]
[402927157,1768988891258,-500.0,0.00041369,120]
[402927158,1768988891321,-500.0,0.00041369,120]
[402927159,1768988891383,-500.0,0.00041369,120]
[402927160,1768988891443,-533.98,0.00041369,120]
[402927161,1768988891504,-500.0,0.00041369,120]
[402927162,1768988891565,-500.0,0.00041369,120]
[402927163,1768988891625,-574.02,0.00041369,120]
[402927164,1768988891690,-539.31,0.00041369,120]
[402927165,1768988891750,-543.14777372,0.00041369,120]
[402927166,1768988891811,-579.91,0.00041369,120]
[402927167,1768988891872,-500.0,0.00041369,120]
[402927168,1768988891936,-507.51731031,0.00041369,120]
[402927169,1768988891999,-500.0,0.00041369,120]
[402927170,1768988892062,-500.0,0.00041369,120]
[402927171,1768988892123,-518.34420415,0.00041369,120]
[402927172,1768988892186,-500.0,0.00041369,120]
[402927173,1768988892249,-500.0,0.00041369,120]
[402927174,1768988892310,-500.0,0.00041369,120]
[402927175,1768988892370,-500.0,0.00041369,120]
[402927176,1768988892428,-500.0,0.00041369,120]
[402927177,1768988892490,-500.0,0.00041369,120]
[402927178,1768988892556,-512.9,0.00041369,120]
[402927179,1768988892621,-500.0,0.00041369,120]
[402927180,1768988892690,-500.0,0.00041369,120]
[402927181,1768988892759,-611.76,0.00041369,120]
[402927182,1768988892825,-500.0,0.00041369,120]
[402927183,1768988892887,-500.0,0.00041369,120]
[402927184,1768988892952,-500.0,0.00041369,120]
[402927185,1768988893014,-500.0,0.00041369,120]
[402927186,1768988893077,-500.0,0.00041369,120]
[402927187,1768988893141,-500.76,0.00041369,120]
[402927188,1768988893205,-500.0,0.00041369,120]
[402927189,1768988893269,-500.0,0.00041369,120]
[402927190,1768988893331,-500.0,0.00041369,60]
[402927191,1768988893391,-500.07748688,0.00041369,120]
[402927192,1768988893454,-1236.19,0.00041369,120]
[402927193,1768988893520,-500.0,0.00041369,120]
[402927194,1768988893582,-500.0,0.00041369,120]
[402927195,1768988893645,-500.0,0.00041369,120]
[402927196,1768988893704,-651.71,0.00041369,120]
[402927197,1768988893762,-500.0,0.00041369,120]
[402927198,1768988893818,-500.0,0.00041369,120]
[402927199,1768988893876,-500.0,0.00041369,120]
[402927200,1768988893939,-500.0,0.00041369,120]
[402927201,1768988894000,-500.0,0.00041369,120]
[402927202,1768988894063,-500.0,0.00041369,120]
[402927203,1768988894124,-500.0,0.00041369,120]
[402927204,1768988894185,-550.67,0.00041369,120]
[402927205,1768988894249,-500.0,0.00041369,120]
[402927206,1768988894313,-500.0,0.00041369,120]
[402927207,1768988894377,-500.0,0.00041369,120]
[402927208,1768988894443,-500.0,0.00041369,120]
[402927209,1768988894510,-746.34,0.00041369,120]
[402927210,1768988894576,-500.0,0.00041369,120]
[402927211,1768988894640,-500.0,0.00041369,120]
[402927212,1768988894702,-500.0,0.00041369,120]
[402927213,1768988894762,-500.0,0.00041369,120]
[402927214,1768988894825,-500.0,0.00041369,120]
[402927215,1768988894888,-500.0,0.00041369,120]
[402927216,1768988894952,-245.61463313,0.00041369,120]
[402927217,1768988895013,-610.65756344,0.00041369,120]
[402927218,1768988895075,-500.0,0.00041369,120]
[402927219,1768988895137,-500.0,0.00041369,120]
[402927220,1768988895198,-500.0,0.00041369,120]
[402927221,1768988895260,-500.0,0.00041369,120]
[402927222,1768988895323,-500.0,0.00041369,120]
[402927223,1768988895383,-500.0,0.00041369,120]
[402927224,1768988895441,-500.0,0.00041369,120]
[402927225,1768988895499,-500.0,0.00041369,120]
[402927226,1768988895560,-500.0,0.00041369,120]
[402927227,1768988895617,-500.0,0.00041369,90]
[402927228,1768988895674,-500.0,0.00041369,120]
[402927229,1768988895731,-487.7149133,0.00041369,120]
[402927230,1768988895785,-388.01176346,0.00041369,120]
[402927231,1768988895845,-527.99003396,0.00041369,120]
[402927232,1768988895905,-500.0,0.00041369,120]
[402927233,1768988895967,-500.0,0.00041369,120]
[402927234,1768988896029,-600.0,0.0004137,120]
[402927235,1768988896089,-150.0,0.00041453,30]